fUST/lending_fUST_20250522
["ID","MTS","AMOUNT","RATE_DAILY","PERIOD"]
[361861784,1747849834413,-762.96,0.000253,31]
[361861785,1747849834426,-762.96,0.000253,31]
[361861786,1747849834436,-762.96,0.000253,31]
[361861787,1747849834447,-762.96,0.000253,31]
[361861788,1747849834458,-762.96,0.000253,31]
[361861789,1747849834468,-762.96,0.000253,31]
[361861790,1747849834479,-762.96,0.000253,31]
[361861791,1747849834488,-762.96,0.000253,31]
[361861792,1747849834498,-762.96,0.000253,31]
[361861793,1747849834508,-762.96,0.000253,31]
[361861794,1747849834518,-762.96,0.000253,31]
[361861795,1747849834528,-762.96,0.000253,31]
[361861796,1747849834538,-1731.44027545,0.00025469,2]
[361861797,1747849834548,-827.58,0.00025479,2]
[361861798,1747849834558,-8975.75,0.00025479,2]
[361861799,1747849834568,-430.0,0.00025479,2]
[361861800,1747849834579,-430.0,0.00025479,2]
[361861801,1747849834594,-509.94,0.00025479,2]
[361861802,1747849834604,-2000.0,0.000255,2]
[361861803,1747849834614,-5194.32082635,0.00025506,2]
[361861804,1747849834623,-1731.44027545,0.00025508,2]
[361861805,1747849834636,-5000.0,0.00025516,30]
[361861806,1747849834647,-5000.0,0.00025516,30]
[361861807,1747849834658,-5000.0,0.00025516,30]
[361861808,1747849834668,-5000.0,0.00025516,30]
[361861809,1747849834678,-5000.0,0.00025516,30]
[361861810,1747849834688,-5000.0,0.00025516,30]
[361861811,1747849834698,-5000.0,0.00025516,30]
[361861812,1747849834707,-5000.0,0.00025516,30]
[361861813,1747849834717,-5000.0,0.00025516,30]
[361861814,1747849834727,-5000.0,0.00025516,30]
[361861815,1747849834736,-5000.0,0.00025516,30]
[361861816,1747849834747,-5000.0,0.00025516,30]
[361861817,1747849834756,-5000.0,0.00025516,30]
[361861818,1747849834767,-5000.0,0.00025516,30]
[361861819,1747849834777,-5000.0,0.00025516,30]
[361861820,1747849834787,-5000.0,0.00025516,30]
[361861821,1747849834797,-5000.0,0.00025516,30]
[361861822,1747849834808,-5000.0,0.00025516,30]
[361861823,1747849834817,-5000.0,0.00025516,30]
[361861824,1747849834826,-5000.0,0.00025516,30]
[361861825,1747849834841,-5000.0,0.00025516,30]
[361861826,1747849834852,-5000.0,0.00025516,30]
[361861827,1747849834862,-5000.0,0.00025516,30]
[361861828,1747849834872,-5000.0,0.00025516,30]
[361861829,1747849834882,-1011.22,0.00025516,30]
[361861830,1747849834892,-314.5140147,0.00025516,30]
[361861831,1747849834902,-160.0,0.00025516,30]
[361861832,1747849834912,-52736.9479059,0.00025518,2]
[361861833,1747849834922,-1731.44027545,0.00025595,2]
[361861834,1747849834931,-562.28190819,0.00025598,9]
[361861835,1747849834942,-1000.0,0.000256,5]
[361861836,1747849834951,-762.96,0.000256,31]
[361861837,1747849834961,-762.96,0.000256,31]
[361861838,1747849834970,-762.96,0.000256,31]
[361861839,1747849834980,-762.96,0.000256,31]
[361861840,1747849834990,-762.96,0.000256,31]
[361861841,1747849834999,-762.96,0.000256,31]
[361861842,1747849835010,-762.96,0.000256,31]
[361861843,1747849835020,-762.96,0.000256,31]
[361861844,1747849835031,-762.96,0.000256,31]
[361861845,1747849835040,-762.96,0.000256,31]
[361861846,1747849835050,-762.96,0.000256,31]
[361861847,1747849835059,-762.96,0.000256,31]
[361861848,1747849835070,-762.96,0.000256,31]
[361861849,1747849835080,-762.96,0.000256,31]
[361861850,1747849835096,-762.96,0.000256,31]
[361861851,1747849835106,-762.96,0.000256,31]
[361861852,1747849835115,-762.96,0.000256,31]
[361861853,1747849835126,-762.96,0.000256,31]
[361861854,1747849835136,-762.96,0.000256,31]
[361861855,1747849835146,-762.96,0.000256,31]
[361861856,1747849835157,-762.96,0.000256,31]
[361861857,1747849835167,-762.96,0.000256,31]
[361861858,1747849835177,-762.96,0.000256,31]
[361861859,1747849835187,-762.96,0.000256,31]
[361861860,1747849835198,-202.640228,0.000256,2]
[361861861,1747849835213,-160.0,0.00025601,3]
[361861862,1747849835223,-160.0,0.00025601,5]
[361861863,1747849835233,-151.0,0.00025608,2]
[361861864,1747849835243,-291.10934459,0.00025615,3]
[361861865,1747849835255,-425.6960984,0.00025618,2]
[361861866,1747849835264,-5007.92626906,0.00025618,3]
[361861867,1747849835274,-160.0,0.00025618,3]
[361861868,1747849835283,-422.71322487,0.00025618,3]
[361861869,1747849835294,-160.0,0.00025618,3]
[361861870,1747849835303,-160.0,0.00025618,3]
[361861871,1747849835313,-160.0,0.00025618,3]
[361861872,1747849835323,-160.0,0.00025618,7]
[361861873,1747849835337,-4322134.41299297,0.00025618,20]
[361861874,1747849835413,-7330.58114687,0.00025618,20]
[361861875,1747849835427,-960.05583154,0.00025618,20]
[361861876,1747849835439,-606.84252089,0.00025618,20]
[361861935,1747849840135,-422.71322487,0.00021915,2]
[361861936,1747849840145,-500.0,0.00023285,2]
[361861937,1747849840154,-500.0,0.00023285,2]
[361861938,1747849840164,-500.0,0.00023285,2]
[361861939,1747849840173,-500.0,0.00023285,2]
[361861940,1747849840183,-500.0,0.00023285,2]
[361861941,1747849840193,-500.0,0.00023285,2]
[361861942,1747849840204,-500.0,0.00023285,2]
[361861943,1747849840213,-500.0,0.00023285,2]
[361861944,1747849840226,-500.0,0.00023285,2]
[361861945,1747849840235,-500.0,0.00023285,2]
[361861946,1747849840245,-500.0,0.00023285,2]
[361861947,1747849840255,-500.0,0.00023285,2]
[361861948,1747849840265,-500.0,0.00023285,2]
[361861949,1747849840274,-500.0,0.00023285,2]
[361861950,1747849840284,-500.0,0.00023285,2]
[361861951,1747849840293,-500.0,0.00023285,2]
[361861952,1747849840304,-615.47513519,0.00023285,2]
[361861953,1747849840314,-635.69697559,0.00024658,2]
[361861954,1747849840324,-500.0,0.00024658,2]
[361861955,1747849840334,-500.0,0.00024658,2]
[361861956,1747849840348,-203.31376712,0.00025011,12]
[361861957,1747849840358,-203.31376712,0.00025122,12]
[361861958,1747849840368,-203.31376712,0.00025233,12]
[361861959,1747849840377,-203.31376712,0.00025344,13]
[361861960,1747849840387,-203.31376712,0.00025456,13]
[361861961,1747849840397,-203.31376712,0.00025567,13]
[361861962,1747849840407,-48181.22962323,0.00025618,20]
[361861963,1747849840443,-2112.02258899,0.00025618,20]
[361861964,1747849840455,-8162.44536908,0.00025618,20]
[361861965,1747849840466,-930.80008429,0.00025618,20]
[361861966,1747849840477,-1476.8542889,0.00025618,20]
[361861967,1747849840511,-521.60055635,0.00021696,2]
[361861968,1747849840522,-519.9164996,0.00021696,2]
[361861969,1747849840533,-3307.63397457,0.00021696,2]
[361861970,1747849840542,-974.25895399,0.00025618,20]
[361862062,1747849843405,-1892049.92314075,0.00025618,20]
[361862063,1747849843415,-1369276.51842868,0.00025618,20]
[361862065,1747849843515,-21324.0,0.00025618,20]
[361862078,1747849846577,-10705.24109759,0.00025618,2]
[361862079,1747849846590,-395.8069233,0.00025618,2]
[361862080,1747849847008,-10066.42199487,0.00025618,2]
[361862090,1747850715905,189.535774,0.00013699,2]
[361862091,1747850843091,-5000.0,0.00019986,2]
[361862092,1747850843114,-189.535774,0.00020187,2]
[361862093,1747850843137,-164.267421,0.00020871,2]
[361862094,1747850843166,-150.0,0.00021,2]
[361862095,1747850843188,-160.0,0.00021678,2]
[361862096,1747850843210,-422.71322487,0.00021679,2]
[361862097,1747850843231,-160.0,0.0002168,2]
[361862098,1747850843253,-400.0,0.00021808,2]
[361862099,1747850843274,-259.45147679,0.00021817,2]
[361862100,1747850843299,-500.0,0.00021916,2]
[361862101,1747850843322,-542.80520156,0.00021916,2]
[361862102,1747850843347,-500.0,0.00021916,2]
[361862103,1747850843372,-500.0,0.00021916,2]
[361862104,1747850843397,-500.0,0.00021916,2]
[361862105,1747850843421,-430.0,0.00021917,2]
[361862106,1747850843444,-430.0,0.00021917,2]
[361862107,1747850843466,-430.0,0.00021917,2]
[361862108,1747850843488,-430.0,0.00021917,2]
[361862109,1747850843512,-430.0,0.00021917,2]
[361862110,1747850843543,-430.0,0.00021917,2]
[361862111,1747850843566,-430.0,0.00021917,2]
[361862112,1747850843588,-400.0,0.00021917,2]
[361862113,1747850843610,-430.0,0.00021917,2]
[361862114,1747850843633,-430.0,0.00021917,2]
[361862115,1747850843657,-284.17375692,0.00021917,2]
[361862116,1747850843679,-506.87970317,0.00021917,2]
[361862117,1747850843702,-347.55863267,0.00021917,2]
[361862118,1747850843723,-430.0,0.00021917,2]
[361862119,1747850843746,-430.0,0.00021917,2]
[361862120,1747850843771,-430.0,0.00021917,2]
[361862121,1747850843792,-450.0,0.00021917,2]
[361862122,1747850843814,-450.0,0.00021917,2]
[361862123,1747850843836,-450.0,0.00021917,2]
[361862124,1747850843859,-430.0,0.00021917,2]
[361862125,1747850843880,-400.86206516,0.00021917,2]
[361862126,1747850843903,-450.0,0.00021917,2]
[361862127,1747850843925,-450.0,0.00021917,2]
[361862128,1747850843948,-450.0,0.00021917,2]
[361862129,1747850843970,-400.63538985,0.00021917,2]
[361862130,1747850843991,-450.0,0.00021917,2]
[361862131,1747850844013,-450.0,0.00021917,2]
[361862132,1747850844033,-430.0,0.00021917,2]
[361862133,1747850844055,-430.0,0.00021917,2]
[361862134,1747850844076,-400.62566055,0.00021917,2]
[361862135,1747850844099,-430.0,0.00021917,2]
[361862136,1747850844121,-430.0,0.00021917,2]
[361862137,1747850844148,-430.0,0.00021917,2]
[361862138,1747850844171,-430.0,0.00021917,2]
[361862139,1747850844196,-430.0,0.00021917,2]
[361862140,1747850844219,-430.0,0.00021917,2]
[361862141,1747850844242,-430.0,0.00021917,2]
[361862142,1747850844264,-430.0,0.00021917,2]
[361862143,1747850844286,-394.40045439,0.00021917,2]
[361862144,1747850844308,-555.79218294,0.00021917,2]
[361862145,1747850844331,-430.0,0.00021917,2]
[361862146,1747850844353,-430.0,0.00021917,2]
[361862147,1747850844375,-430.0,0.00021917,2]
[361862148,1747850844398,-450.0,0.00021917,2]
[361862149,1747850844419,-430.0,0.00021917,2]
[361862150,1747850844442,-430.0,0.00021917,2]
[361862151,1747850844464,-430.0,0.00021917,2]
[361862152,1747850844487,-430.0,0.00021917,2]
[361862153,1747850844509,-558.82,0.00021917,2]
[361862154,1747850844534,-153.67212571,0.00021917,2]
[361862155,1747850844556,-431.43277652,0.00021917,2]
[361862156,1747850844580,-430.0,0.00021917,2]
[361862157,1747850844603,-430.0,0.00021917,2]
[361862158,1747850844625,-401.85675123,0.00021917,2]
[361862159,1747850844646,-430.0,0.00021917,2]
[361862160,1747850844667,-497.49,0.00021917,2]
[361862161,1747850844690,-450.0,0.00021917,2]
[361862162,1747850844713,-430.0,0.00021917,2]
[361862163,1747850844736,-430.0,0.00021917,2]
[361862164,1747850844758,-450.0,0.00021917,2]
[361862165,1747850844779,-430.0,0.00021917,2]
[361862166,1747850844802,-421.6836438,0.00021917,2]
[361862167,1747850844824,-400.88327233,0.00021917,2]
[361862168,1747850844845,-430.0,0.00021917,2]
[361862169,1747850844867,-206.73654446,0.00021917,2]
[361862170,1747850844888,-430.0,0.00021917,2]
[361862171,1747850844912,-450.0,0.00021917,2]
[361862172,1747850844933,-430.0,0.00021917,2]
[361862173,1747850844955,-450.0,0.00021917,2]
[361862174,1747850844978,-430.0,0.00021917,2]
[361862175,1747850844999,-430.0,0.00021917,2]
[361862176,1747850845021,-430.0,0.00021917,2]
[361862177,1747850845044,-430.0,0.00021917,2]
[361862178,1747850845066,-430.0,0.00021917,2]
[361862179,1747850845087,-404.42614212,0.00021917,2]
[361862180,1747850845108,-450.0,0.00021917,2]
[361862181,1747850845129,-430.0,0.00021917,2]
[361862182,1747850845151,-402.66735484,0.00021917,2]
[361862183,1747850845173,-430.0,0.00021917,2]
[361862184,1747850845194,-450.0,0.00021917,2]
[361862185,1747850845215,-400.78012797,0.00021917,2]
[361862186,1747850845236,-404.49785513,0.00021917,2]
[361862187,1747850845257,-430.0,0.00021917,2]
[361862188,1747850845279,-430.0,0.00021917,2]
[361862189,1747850845300,-430.0,0.00021917,2]
[361862190,1747850845321,-500.0,0.00021917,2]
[361862191,1747850845343,-434.27026199,0.00021917,2]
[361862192,1747850845364,-500.0,0.00021917,2]
[361862193,1747850845385,-430.0,0.00021917,2]
[361862194,1747850845411,-430.0,0.00021917,2]
[361862195,1747850845433,-430.0,0.00021917,2]
[361862196,1747850845453,-430.0,0.00021917,2]
[361862197,1747850845476,-430.0,0.00021917,2]
[361862198,1747850845497,-430.0,0.00021917,2]
[361862199,1747850845521,-430.0,0.00021917,2]
[361862200,1747850845544,-430.0,0.00021917,2]
[361862201,1747850845569,-471.81,0.00021917,2]
[361862202,1747850845590,-408.78965009,0.00021917,2]
[361862203,1747850845614,-430.0,0.00021917,2]
[361862204,1747850845635,-402.0455979,0.00021917,2]
[361862205,1747850845660,-430.0,0.00021917,2]
[361862206,1747850845683,-430.0,0.00021917,2]
[361862207,1747850845704,-430.0,0.00021917,2]
[361862208,1747850845727,-430.0,0.00021917,2]
[361862209,1747850845748,-450.0,0.00021917,2]
[361862210,1747850845769,-166.73815685,0.00021917,2]
[361862211,1747850845790,-430.0,0.00021917,2]
[361862212,1747850845812,-430.0,0.00021917,2]
[361862213,1747850845835,-430.0,0.00021917,2]
[361862214,1747850845857,-430.0,0.00021917,2]
[361862215,1747850845881,-430.0,0.00021917,2]
[361862216,1747850845905,-430.0,0.00021917,2]
[361862217,1747850845926,-389.50297437,0.00021917,2]
[361862218,1747850845947,-450.0,0.00021917,2]
[361862219,1747850845969,-430.0,0.00021917,2]
[361862220,1747850845992,-430.0,0.00021917,2]
[361862221,1747850846013,-419.33638042,0.00021917,2]
[361862222,1747850846036,-402.68366557,0.00021917,2]
[361862223,1747850846057,-314.47709477,0.00021917,2]
[361862224,1747850846079,-430.0,0.00021917,2]
[361862225,1747850846103,-430.0,0.00021917,2]
[361862226,1747850846124,-500.0,0.0002219,2]
[361862227,1747850846149,-500.0,0.0002219,2]
[361862228,1747850846171,-209.32,0.00022191,2]
[361862229,1747850846311,-430.0,0.00022191,2]
[361862230,1747850846336,-430.0,0.00022191,2]
[361862231,1747850846359,-430.0,0.00022191,2]
[361862232,1747850846384,-430.0,0.00022191,2]
[361862233,1747850846411,-450.0,0.00022191,2]
[361862234,1747850846435,-430.0,0.00022191,2]
[361862235,1747850846461,-430.0,0.00022191,2]
[361862236,1747850846484,-444.98,0.00022191,2]
[361862237,1747850846508,-430.0,0.00022191,2]
[361862238,1747850846549,-430.0,0.00022191,2]
[361862239,1747850846584,-430.0,0.00022191,2]
[361862240,1747850846609,-324.23649959,0.00022191,2]
[361862241,1747850846630,-425.08583795,0.00022191,2]
[361862242,1747850846655,-315.13,0.00022191,2]
[361862243,1747850846678,-430.0,0.00022191,2]
[361862244,1747850846703,-430.0,0.00022191,2]
[361862245,1747850846727,-463.22,0.00022191,2]
[361862246,1747850846750,-430.0,0.00022191,2]
[361862247,1747850846773,-430.0,0.00022191,2]
[361862248,1747850846796,-430.0,0.00022191,2]
[361862249,1747850846819,-430.0,0.00022191,2]
[361862250,1747850846841,-430.0,0.00022191,2]
[361862251,1747850846864,-430.0,0.00022191,2]
[361862252,1747850846888,-430.0,0.00022191,2]
[361862253,1747850846916,-170.54852321,0.00022417,7]
[361862254,1747850846938,-500.0,0.00022464,2]
[361862255,1747850846959,-430.0,0.00022465,2]
[361862256,1747850846985,-513.2,0.00022465,2]
[361862257,1747850847008,-430.0,0.00022465,2]
[361862258,1747850847031,-345.59,0.00022465,2]
[361862259,1747850847053,-252.17,0.00022465,2]
[361862260,1747850847075,-430.0,0.00022465,2]
[361862261,1747850847097,-410.04,0.00022465,2]
[361862262,1747850847119,-287.23,0.00022465,2]
[361862263,1747850847142,-430.0,0.00022465,2]
[361862264,1747850847174,-277.42,0.00022465,2]
[361862265,1747850847197,-430.0,0.00022465,2]
[361862266,1747850847219,-430.0,0.00022465,2]
[361862267,1747850847241,-430.0,0.00022465,2]
[361862268,1747850847264,-264.29,0.00022465,2]
[361862269,1747850847285,-430.0,0.00022739,2]
[361862270,1747850847308,-577.07805585,0.00022739,2]
[361862271,1747850847331,-352.91,0.00022739,2]
[361862272,1747850847355,-430.0,0.00022739,2]
[361862273,1747850847379,-430.0,0.00022739,2]
[361862274,1747850847403,-430.0,0.00022739,2]
[361862275,1747850847425,-499.02,0.00022739,2]
[361862276,1747850847446,-945.01,0.00023,2]
[361862277,1747850847468,-502.09050588,0.00023,30]
[361862278,1747850847489,-500.0,0.00023,30]
[361862279,1747850847510,-676.91959528,0.00023,30]
[361862280,1747850847535,-500.0,0.00023,30]
[361862281,1747850847559,-500.0,0.00023,30]
[361862282,1747850847581,-500.0,0.00023,30]
[361862283,1747850847603,-500.0,0.00023,30]
[361862284,1747850847624,-500.0,0.00023012,2]
[361862285,1747850847645,-430.0,0.00023013,2]
[361862286,1747850847671,-430.0,0.00023013,2]
[361862287,1747850847696,-430.0,0.00023013,2]
[361862288,1747850847720,-430.0,0.00023013,2]
[361862289,1747850847742,-500.0,0.00023284,2]
[361862290,1747850847763,-500.0,0.00023284,2]
[361862291,1747850847787,-438.32316692,0.00023285,2]
[361862292,1747850847809,-453.82974168,0.00023285,2]
[361862293,1747850847830,-430.0,0.00023285,2]
[361862294,1747850847851,-405.18465484,0.00023285,2]
[361862295,1747850847873,-287.28,0.00023285,2]
[361862296,1747850847895,-430.0,0.00023285,2]
[361862297,1747850847920,-450.0,0.00023285,2]
[361862298,1747850847942,-430.0,0.00023285,2]
[361862299,1747850847963,-407.08727812,0.00023285,2]
[361862300,1747850847985,-430.0,0.00023285,2]
[361862301,1747850848007,-430.0,0.00023285,2]
[361862302,1747850848029,-217.37349743,0.00023285,2]
[361862303,1747850848050,-430.0,0.00023285,2]
[361862304,1747850848072,-430.0,0.00023285,2]
[361862305,1747850848093,-430.0,0.00023285,2]
[361862306,1747850848115,-395.05970409,0.00023285,2]
[361862307,1747850848136,-430.0,0.00023285,2]
[361862308,1747850848161,-430.0,0.00023285,2]
[361862309,1747850848183,-430.0,0.00023285,2]
[361862310,1747850848204,-430.0,0.00023285,2]
[361862311,1747850848226,-430.0,0.00023285,2]
[361862312,1747850848248,-430.0,0.00023285,2]
[361862313,1747850848270,-430.0,0.00023285,2]
[361862314,1747850848291,-152.12673576,0.00023285,2]
[361862315,1747850848313,-430.0,0.00023285,2]
[361862316,1747850848335,-430.0,0.00023285,2]
[361862317,1747850848357,-430.0,0.00023285,2]
[361862318,1747850848379,-430.0,0.00023285,2]
[361862319,1747850848405,-430.0,0.00023285,2]
[361862320,1747850848427,-430.0,0.00023285,2]
[361862321,1747850848450,-430.0,0.00023285,2]
[361862322,1747850848470,-430.0,0.00023285,2]
[361862323,1747850848492,-430.0,0.00023285,2]
[361862324,1747850848515,-430.0,0.00023285,2]
[361862325,1747850848539,-430.0,0.00023285,2]
[361862326,1747850848561,-430.0,0.00023285,2]
[361862327,1747850848582,-430.0,0.00023287,2]
[361862328,1747850848606,-430.0,0.00023287,2]
[361862329,1747850848629,-430.0,0.00023287,2]
[361862330,1747850848657,-6944.47,0.00023287,2]
[361862331,1747850848680,-430.0,0.00023287,2]
[361862332,1747850848702,-430.0,0.00023559,2]
[361862333,1747850848727,-430.0,0.00023559,2]
[361862334,1747850848748,-430.0,0.00023559,2]
[361862335,1747850848769,-430.0,0.00023559,2]
[361862336,1747850848792,-430.0,0.00023559,2]
[361862337,1747850848814,-157.03675015,0.00023559,2]
[361862338,1747850848836,-430.0,0.00023559,2]
[361862339,1747850848858,-430.0,0.00023559,2]
[361862340,1747850848880,-430.0,0.00023559,2]
[361862341,1747850848904,-430.0,0.00023559,2]
[361862342,1747850848925,-500.0,0.0002356,2]
[361862343,1747850848947,-430.0,0.00023561,2]
[361862344,1747850848970,-430.0,0.00023561,2]
[361862345,1747850848993,-430.0,0.00023561,2]
[361862346,1747850849015,-430.0,0.00023561,2]
[361862347,1747850849037,-189.68741763,0.00023833,2]
[361862348,1747850849057,-430.0,0.00023833,2]
[361862349,1747850849078,-545.29,0.00023833,2]
[361862350,1747850849099,-467.39178526,0.00023833,2]
[361862351,1747850849120,-241.63,0.00023833,2]
[361862352,1747850849140,-430.0,0.00023835,2]
[361862353,1747850849164,-550.18,0.00023835,2]
[361862354,1747850849185,-430.0,0.00023835,2]
[361862355,1747850849208,-430.0,0.00023835,2]
[361862356,1747850849229,-430.0,0.00024107,2]
[361862357,1747850849250,-500.0,0.00024108,2]
[361862358,1747850849271,-430.0,0.00024109,2]
[361862359,1747850849293,-430.0,0.00024109,2]
[361862360,1747850849315,-430.0,0.00024109,2]
[361862361,1747850849336,-960.0,0.00024261,2]
[361862362,1747850849357,-430.0,0.00024381,2]
[361862363,1747850849378,-430.0,0.00024383,2]
[361862364,1747850849401,-430.0,0.00024383,2]
[361862365,1747850849425,-430.0,0.00024383,2]
[361862366,1747850849446,-430.0,0.00024655,2]
[361862367,1747850849468,-342.95025982,0.00024655,2]
[361862368,1747850849490,-500.0,0.00024655,2]
[361862369,1747850849512,-500.0,0.00024656,2]
[361862370,1747850849538,-430.0,0.00024657,2]
[361862371,1747850849562,-430.0,0.00024657,2]
[361862372,1747850849585,-430.0,0.00024657,2]
[361862373,1747850849609,-183.41633099,0.00024889,2]
[361862374,1747850849632,-9167.56868545,0.000249,2]
[361862375,1747850849657,-430.0,0.00024929,2]
[361862376,1747850849678,-430.0,0.00024931,2]
[361862377,1747850849702,-430.0,0.00024931,2]
[361862378,1747850849725,-430.0,0.00024931,2]
[361862379,1747850849746,-190.13692054,0.00024968,2]
[361862380,1747850849891,-500.0,0.00024968,2]
[361862381,1747850849917,-483.56161334,0.00024968,2]
[361862382,1747850849941,-306.91228415,0.00024968,2]
[361862383,1747850849965,-500.0,0.00024968,2]
[361862384,1747850849987,-500.0,0.00024968,2]
[361862385,1747850850010,-500.0,0.00024968,2]
[361862386,1747850850034,-500.0,0.00024968,2]
[361862387,1747850850056,-27502.7060563,0.0002497,2]
[361862388,1747850850079,-53330.57649335,0.0002498,2]
[361862416,1747851032440,-422.71322487,0.00021697,2]
[361862418,1747851032450,-4461.50112868,0.00021698,2]
[361862420,1747851032461,-430.0,0.00021917,2]
[361862422,1747851032471,-562.22968061,0.00021917,2]
[361862424,1747851032481,-430.0,0.00021917,2]
[361862426,1747851032491,-430.0,0.00021917,2]
[361862427,1747851032501,-430.0,0.00021917,2]
[361862428,1747851032511,-430.0,0.00021917,2]
[361862430,1747851032520,-543.74102445,0.00021917,2]
[361862431,1747851032533,-430.0,0.00021917,2]
[361862432,1747851032543,-430.0,0.00022191,2]
[361862433,1747851032554,-198.97370553,0.00022191,2]
[361862434,1747851032563,-430.0,0.00022191,2]
[361862435,1747851032573,-430.0,0.00022191,2]
[361862436,1747851032583,-451.34,0.00022465,2]
[361862437,1747851032597,-430.0,0.00022465,2]
[361862438,1747851032607,-430.0,0.00022739,2]
[361862439,1747851032616,-228.42109015,0.000229,8]
[361862440,1747851032627,-500.0,0.00023,30]
[361862441,1747851032638,-500.0,0.00023,30]
[361862442,1747851032647,-500.0,0.00023,30]
[361862443,1747851032657,-500.0,0.00023,30]
[361862444,1747851032667,-600.0,0.00023,30]
[361862445,1747851032677,-500.0,0.00023,30]
[361862446,1747851032687,-522.38253939,0.00023,30]
[361862447,1747851032696,-850.51,0.00023,2]
[361862448,1747851032706,-228.42109008,0.00023003,8]
[361862449,1747851032716,-369.51032146,0.00023013,2]
[361862450,1747851032726,-228.42109008,0.00023107,8]
[361862451,1747851032736,-228.42109008,0.0002321,8]
[361862452,1747851032747,-6655.12,0.00023287,2]
[361862453,1747851032756,-228.42109008,0.00023314,9]
[361862454,1747851032766,-228.42109008,0.00023417,9]
[361862455,1747851032776,-228.42109008,0.00023521,9]
[361862456,1747851032786,-228.42109008,0.00023624,9]
[361862457,1747851032796,-228.42109008,0.00023728,9]
[361862458,1747851032807,-228.42109008,0.00023831,10]
[361862459,1747851032817,-228.42109008,0.00023934,10]
[361862460,1747851032827,-228.42109008,0.00024038,10]
[361862461,1747851032837,-228.42109008,0.00024141,10]
[361862462,1747851032846,-228.42109008,0.00024245,10]
[361862463,1747851032856,-228.42109008,0.00024348,11]
[361862464,1747851032866,-228.42109008,0.00024452,11]
[361862465,1747851032876,-429.73910508,0.00024496,2]
[361862466,1747851032887,-228.42109008,0.00024555,11]
[361862467,1747851032898,-228.42109008,0.00024659,11]
[361862468,1747851032907,-228.42109008,0.00024762,11]
[361862469,1747851032917,-228.42109008,0.00024866,12]
[361862470,1747851032927,-228.42109008,0.00024969,12]
[361862471,1747851032937,-430.0,0.0002498,2]
[361862472,1747851032947,-500.0,0.00024989,2]
[361862473,1747851032956,-500.0,0.00024989,2]
[361862474,1747851032966,-438.04630413,0.00024989,2]
[361862475,1747851032978,-500.0,0.00024989,30]
[361862476,1747851032988,-282.53391128,0.00024999,2]
[361862477,1747851032997,-59469.14484312,0.00025,30]
[361862478,1747851033007,-314.5140147,0.00025,30]
[361862479,1747851033017,-228.42109008,0.00025072,12]
[361862480,1747851033027,-161.133461,0.00025105,4]
[361862481,1747851033037,-228.42109008,0.00025176,12]
[361862482,1747851033047,-430.0,0.00025205,2]
[361862483,1747851033060,-430.0,0.00025205,2]
[361862484,1747851033070,-430.0,0.00025253,2]
[361862485,1747851033080,-228.42109008,0.00025279,12]
[361862486,1747851033091,-457.92,0.000253,31]
[361862487,1747851033102,-457.92,0.000253,31]